fUST/lending_fUST_20251221
["ID","MTS","AMOUNT","RATE_DAILY","PERIOD"]
[399301510,1766260002952,3900.0,0.00032876,120]
[399301511,1766260004104,-300.0,0.00012056,2]
[399301512,1766260004124,-117.09511391,0.00012057,2]
[399301513,1766260021011,16318.0476763,0.00011923,2]
[399301514,1766260021041,15120.5362664,0.00011923,2]
[399301524,1766260083935,4879.4637336,0.00012,2]
[399301525,1766260083955,120.5362664,0.00012,2]
[399301529,1766260107971,5000.0,0.00012,2]
[399301530,1766260131636,5000.0,0.00012,2]
[399301531,1766260155626,5000.0,0.00012,2]
[399301532,1766260167269,-300.0,0.00012056,2]
[399301533,1766260167290,-6651.92739024,0.00012057,2]
[399301534,1766260179693,4879.4637336,0.00012,2]
[399301535,1766260179713,120.5362664,0.00012,2]
[399301536,1766260203618,5000.0,0.00012,2]
[399301540,1766260227275,5000.0,0.00012,2]
[399301570,1766260232564,-590.0,0.00012057,2]
[399301572,1766260232573,-2063.06756959,0.00012057,2]
[399301574,1766260232585,-2151.08485526,0.00012057,2]
[399301576,1766260232594,-541.6985564,0.00012101,2]
[399301578,1766260232604,-190.1451937,0.00012144,2]
[399301580,1766260232613,-300.0,0.00012296,2]
[399301582,1766260232623,-300.0,0.00012296,2]
[399301584,1766260232632,-300.0,0.00012296,2]
[399301586,1766260232642,-300.0,0.00012296,2]
[399301588,1766260232651,-1200.0,0.00012296,2]
[399301590,1766260232660,-50000.0,0.00012297,2]
[399301592,1766260232670,-300.0,0.00012297,2]
[399301594,1766260232679,-300.0,0.00012297,2]
[399301596,1766260232688,-159.04369822,0.00012297,2]
[399301647,1766260238662,-140.95630178,0.00012297,2]
[399301648,1766260238673,-300.0,0.00012297,2]
[399301649,1766260238683,-5.98873296,0.00012297,2]
[399301650,1766260238716,-294.01126704,0.00012297,2]
[399301651,1766260238726,-300.0,0.00012297,2]
[399301652,1766260238736,-300.0,0.00012297,2]
[399301653,1766260238746,-300.0,0.00012297,2]
[399301654,1766260238755,-300.0,0.00012297,2]
[399301655,1766260238769,-92.20068523,0.00012297,2]
[399301656,1766260238781,-207.79931477,0.00012297,2]
[399301657,1766260238790,-300.0,0.00012297,2]
[399301658,1766260238799,-300.0,0.00012297,2]
[399301659,1766260238809,-300.0,0.00012297,2]
[399301660,1766260238818,-300.0,0.00012297,2]
[399301661,1766260238828,-300.0,0.00012297,2]
[399301662,1766260238837,-200.0,0.00012373,2]
[399301663,1766260238847,-444.2014541,0.00012542,2]
[399301664,1766260238860,-155.7985459,0.00012542,2]
[399301665,1766260238870,-317.48832518,0.00012742,2]
[399301666,1766260238880,-547.8912931,0.00012742,2]
[399301667,1766260238890,-20000.0,0.00012743,2]
[399301668,1766260238900,-3978.49110885,0.000129,2]
[399301669,1766260238910,-2475.28583286,0.00012987,2]
[399301670,1766260238919,-4925.04346608,0.00013034,2]
[399301671,1766260238929,-146546.32223416,0.00013041,2]
[399301714,1766260241868,-262.0624995,0.00013041,2]
[399301716,1766260241880,-374.08989249,0.00013041,2]
[399301805,1766260242844,-1235.17087944,0.00012951,2]
[399301989,1766260245727,-1188.54649857,0.00012951,2]
[399301990,1766260245737,-484.53774194,0.00013041,2]
[399301991,1766260245749,-4820.0,0.00013041,2]
[399301992,1766260246327,-569.37999998,0.00013041,2]
[399301993,1766260246339,-680.90757339,0.00013041,2]
[399301994,1766260365721,150.0,8.571e-05,2]
[399301995,1766260366142,150.0,8.78e-05,2]
[399301996,1766260366569,150.0,8.989e-05,2]
[399301997,1766260367433,150.0,9.198e-05,2]
[399301998,1766260367845,150.0,9.407e-05,2]
[399301999,1766260368281,150.0,9.616e-05,2]
[399302000,1766260368695,150.0,9.825e-05,2]
[399302001,1766260472088,-5000.0,0.0001261,2]
[399302002,1766260472108,-200.4524557,0.00012737,2]
[399302003,1766260472128,-581.46374211,0.00012791,2]
[399302004,1766260472147,-3989.59616181,0.00013033,2]
[399302005,1766260472168,-383.52390518,0.0001304,2]
[399302006,1766260472578,-222.24182763,0.0001304,2]
[399302007,1766260472608,-353384.72190757,0.00013041,2]
[399302008,1766260498107,150.0,8.045e-05,2]
[399302009,1766260498557,150.0,8.242e-05,2]
[399302010,1766260499467,150.0,8.438e-05,2]
[399302011,1766260499896,150.0,8.634e-05,2]
[399302012,1766260500318,169.16,8.83e-05,2]
[399302013,1766260500766,203.0,9.027e-05,2]
[399302014,1766260501231,236.83,9.223e-05,2]
[399302015,1766260501649,270.66,9.419e-05,2]
[399302016,1766260502053,304.5,9.615e-05,2]
[399302017,1766260502456,338.33,9.812e-05,2]
[399302018,1766260506549,2874.23,0.00012,2]
[399302019,1766260570019,150.0,8.017e-05,2]
[399302020,1766260570113,150.0,8.213e-05,2]
[399302021,1766260570448,150.0,8.408e-05,2]
[399302022,1766260710686,3382.7537336,0.0001191,2]
[399302023,1766260710706,12402.8206395,0.0001191,2]
[399302024,1766260769336,3198.400732,0.00011907,2]
[399302026,1766260904342,684.7229129,0.00011853,2]
[399302027,1766261016957,10000.0,0.00032877,120]
[399302028,1766261067216,3441.0,0.00032877,120]
[399302029,1766261101294,999.0,0.00011853,2]
[399302030,1766261151180,10000.0,0.00032877,120]
[399302031,1766261191312,10000.0,0.00032877,120]
[399302032,1766261207252,10000.0,0.00032877,120]
[399302033,1766261218125,-169.39797367,0.00012581,2]
[399302034,1766261227982,10000.0,0.00032877,120]
[399302035,1766261245910,10000.0,0.00032877,120]
[399302036,1766261261157,10000.0,0.00032877,120]
[399302037,1766261283101,173.4,6.993e-05,2]
[399302038,1766261283495,173.4,6.993e-05,2]
[399302039,1766261283780,173.38,6.993e-05,2]
[399302040,1766261306159,2194.8757156,0.00011792,2]
[399302041,1766261320267,10000.0,0.00011,2]
[399302042,1766261348600,10000.0,0.00011,2]
[399302043,1766261365081,-300.0,0.00011681,2]
[399302044,1766261365100,-3299.859284,0.00011682,2]
[399302045,1766261367037,5000.0,0.00011,2]
[399302046,1766261383952,10000.0,0.0001,2]
[399302047,1766261401240,0.01,0.0001,2]
[399302048,1766261401264,2069.64,0.0001,2]
[399302049,1766261403699,150.0,8.738e-05,2]
[399302050,1766261404102,150.0,8.952e-05,2]
[399302051,1766261404515,150.0,9.165e-05,2]
[399302052,1766261405299,150.0,9.378e-05,2]
[399302053,1766261405392,150.0,9.591e-05,2]
[399302054,1766261405752,150.0,9.804e-05,2]
[399302055,1766261413036,-150.0,0.00010017,2]
[399302056,1766261416097,5000.0,0.0001,2]
[399302076,1766261431805,-156.61,0.0001023,2]
[399302078,1766261431815,-176.19,0.00010443,2]
[399302080,1766261431825,-155.33356077,0.00010657,2]
[399302082,1766261431834,-740.54201386,0.00011564,2]
[399302084,1766261431845,-636.48386766,0.00011564,2]
[399302086,1766261431856,-913.68375377,0.00011564,2]
[399302089,1766261431868,-2345.96611,0.00011564,2]
[399302091,1766261431878,-300.0,0.00011681,2]
[399302093,1766261431887,-300.0,0.00011681,2]
[399302095,1766261431896,-300.0,0.00011681,2]
[399302096,1766261431906,-1200.0,0.00011681,2]
[399302098,1766261431915,-300.0,0.00011681,2]
[399302100,1766261431924,-584.0,0.00011681,2]
[399302102,1766261431934,-21249.88069805,0.00011682,2]
[399302127,1766261437770,-5000.0,0.00011565,2]
[399302128,1766261437780,-500.0,0.00011681,2]
[399302129,1766261437789,-500.0,0.00011681,2]
[399302130,1766261437798,-500.0,0.00011681,2]
[399302131,1766261437808,-500.0,0.00011681,2]
[399302132,1766261437817,-500.0,0.00011681,2]
[399302133,1766261437826,-500.0,0.00011681,2]
[399302134,1766261437835,-500.0,0.00011681,2]
[399302135,1766261437845,-500.0,0.00011681,2]
[399302136,1766261437854,-505.62499053,0.00011681,2]
[399302137,1766261437863,-385.84987877,0.00011681,2]
[399302138,1766261437875,-114.15012123,0.00011681,2]
[399302139,1766261437884,-228.18017724,0.00011681,2]
[399302140,1766261437896,-271.81982276,0.00011681,2]
[399302141,1766261437907,-500.0,0.00011681,2]
[399302142,1766261437916,-500.0,0.00011681,2]
[399302143,1766261437925,-311.97031441,0.00011681,2]
[399302144,1766261437936,-188.02968559,0.00011681,2]
[399302145,1766261437946,-500.0,0.00011681,2]
[399302146,1766261437956,-500.0,0.00011681,2]
[399302147,1766261437967,-500.0,0.00011681,2]
[399302148,1766261437976,-500.0,0.00011681,2]
[399302149,1766261437987,-500.0,0.00011681,2]
[399302150,1766261437998,-500.0,0.00011681,2]
[399302151,1766261438008,-500.0,0.00011681,2]
[399302152,1766261438017,-214.29996739,0.00011681,2]
[399302153,1766261438027,-500.0,0.00011681,2]
[399302154,1766261438036,-500.0,0.00011681,2]
[399302155,1766261438045,-500.0,0.00011681,2]
[399302156,1766261438054,-500.0,0.00011681,2]
[399302157,1766261438063,-500.0,0.00011681,2]
[399302158,1766261438072,-500.0,0.00011681,2]
[399302159,1766261438081,-266.64020728,0.00011681,2]
[399302160,1766261438091,-500.0,0.00011681,2]
[399302161,1766261438100,-500.0,0.00011681,2]
[399302162,1766261438109,-500.0,0.00011681,2]
[399302163,1766261438118,-353.66993166,0.00011681,2]
[399302164,1766261438128,-500.0,0.00011681,2]
[399302165,1766261438138,-500.0,0.00011681,2]
[399302166,1766261438148,-500.0,0.00011681,2]
[399302167,1766261438157,-500.0,0.00011681,2]
[399302168,1766261438167,-500.0,0.00011681,2]
[399302169,1766261438176,-163.15004974,0.00011681,2]
[399302170,1766261438186,-500.0,0.00011681,2]
[399302171,1766261438195,-500.0,0.00011681,2]
[399302172,1766261438204,-500.0,0.00011681,2]
[399302173,1766261438214,-1758.17317265,0.00011682,2]
[399302174,1766261438223,-3536.3915299,0.00011792,2]
[399302175,1766261438232,-372.3823824,0.00012581,2]
[399302176,1766261438243,-975.20464092,0.00012581,2]
[399302177,1766261438252,-523.72795524,0.00012581,2]
[399302178,1766261438262,-942.71031943,0.00012581,2]
[399302179,1766261438271,-186.29158513,0.00012582,2]
[399302180,1766261438281,-1751.84081198,0.00012618,2]
[399302181,1766261438290,-775.75441622,0.0001268,2]
[399302182,1766261438300,-397.37291831,0.0001268,2]
[399302183,1766261438309,-324.34574467,0.0001268,2]
[399302184,1766261438318,-500.0,0.0001268,2]
[399302185,1766261438327,-159.74769805,0.0001268,2]
[399302186,1766261438336,-500.0,0.00012681,2]
[399302187,1766261438346,-1699.78639096,0.00012683,2]
[399302188,1766261438358,-1439.54370203,0.00012683,2]
[399302196,1766261439984,-6027.5130443,0.00012683,2]
[399302197,1766261439998,-264.12583363,0.00012683,2]
[399302207,1766261442990,-694.0900242,0.00012683,2]
[399302213,1766261445522,-0.25938843,0.00012683,2]
[399302214,1766261445537,-4886.56016067,0.00012683,2]
[399302217,1766261445828,-4988.12145578,0.00012683,2]
[399302218,1766261445843,-535.22282364,0.00012704,2]
[399302219,1766261445859,-160.90221815,0.000128,2]
[399302220,1766261445881,-496.47127164,0.000128,2]
[399302221,1766261445893,-1943.0,0.000128,2]
[399302222,1766261445904,-2773.56790519,0.000128,2]
[399302223,1766261445918,-1000.0,0.000128,2]
[399302224,1766261445930,-1000.0,0.000128,2]
[399302225,1766261445942,-1000.0,0.000128,2]
[399302226,1766261445953,-1000.0,0.000128,2]
[399302227,1766261445966,-185.19777181,0.000128,2]
[399302228,1766261445977,-160.90221815,0.00012806,2]
[399302229,1766261445989,-68018.61433564,0.00012808,2]
[399302230,1766261466722,151.6,0.0001,2]
[399302231,1766261484050,3000.35788049,0.00032876,120]
[399302232,1766261595583,16580.31485962,0.00032877,120]
[399302233,1766261667806,-524.51836716,0.00012176,2]
[399302234,1766261688203,-462.70456973,0.00012581,2]
[399302235,1766261703390,3493.24,0.00027397,120]
[399302236,1766261710979,-300.0,0.00012797,2]
[399302237,1766261711007,-300.0,0.00012797,2]
[399302238,1766261711035,-300.0,0.00012797,2]
[399302239,1766261711064,-1200.0,0.00012797,2]
[399302240,1766261711093,-298.0,0.00012797,2]
[399302241,1766261725966,150.0,8.615e-05,2]
[399302242,1766261726385,150.0,8.825e-05,2]
[399302243,1766261726773,150.0,9.035e-05,2]
[399302244,1766261727189,150.0,9.245e-05,2]
[399302245,1766261727624,165.7,9.455e-05,2]
[399302246,1766261728030,198.85,9.665e-05,2]
[399302247,1766261729020,231.99,9.875e-05,2]
[399302248,1766261729375,265.13,0.00010085,2]
[399302249,1766261730108,298.27,0.00010295,2]
[399302250,1766261730686,331.41,0.00010505,2]
[399302251,1766261733030,-190.47777415,0.00012798,2]
[399302252,1766261733058,-333.95833228,0.00012798,2]
[399302253,1766261733088,-307.40446748,0.00012798,2]
[399302254,1766261733116,-372.62999241,0.00012798,2]
[399302255,1766261733142,-163.3440736,0.00012798,2]
[399302256,1766261733171,-500.0,0.00012798,2]
[399302257,1766261733198,-518.12778331,0.00012798,2]
[399302258,1766261762807,300.0,0.00012798,2]
[399302259,1766261787007,4738.55238365,0.00012798,2]
[399302260,1766261796868,150.0,8.052e-05,2]
[399302261,1766261797411,150.0,8.249e-05,2]
[399302262,1766261797846,150.0,8.445e-05,2]
[399302263,1766261798314,150.0,8.642e-05,2]
[399302264,1766261798708,150.0,8.838e-05,2]
[399302265,1766261799128,150.0,9.034e-05,2]
[399302266,1766261799560,150.0,9.231e-05,2]
[399302267,1766261819317,-3850.47761635,0.00012799,2]
[399302268,1766261819385,-10000.01,0.00012799,2]
[399302269,1766261819558,-10000.01,0.00012799,2]
[399302270,1766261819728,-10000.01,0.00012799,2]
[399302271,1766261819910,-10000.01,0.00012799,2]
[399302272,1766261820109,-3850.52761635,0.00012799,2]
[399302273,1766261820133,-2298.9547673,0.00012799,2]
[399302274,1766261822315,300.0,0.00012798,2]
[399302275,1766261841289,-514.02799982,0.000128,2]
[399302276,1766261858493,6250.0,0.00030137,120]
[399302277,1766261861841,5000.0,0.000128,2]
[399302278,1766261862306,-2773.56790519,0.000128,2]
[399302279,1766261862337,-1943.0,0.000128,2]
[399302280,1766261882622,300.0,0.00012799,2]
[399302281,1766261884565,-4400.01,0.000128,2]
[399302282,1766261884694,266.87418962,0.000128,2]
[399302283,1766261884716,4733.12581038,0.000128,2]
[399302284,1766261884756,-5000.01,0.000128,2]
[399302285,1766261884902,-10000.01,0.000128,2]
[399302286,1766261885143,-599.97,0.000128,2]
[399302287,1766261907747,-10000.01,0.00012808,2]
[399302288,1766261907959,-10000.01,0.00012808,2]
[399302289,1766261908121,-10000.01,0.00012808,2]
[399302290,1766261908391,-10000.01,0.00012808,2]
[399302291,1766261908567,-10000.01,0.00012808,2]
[399302292,1766261908612,5000.0,0.000128,2]
[399302293,1766261908766,-5000.01,0.00012808,2]
[399302294,1766261908916,-10000.01,0.00012808,2]
[399302295,1766261909153,-10000.01,0.00012808,2]
[399302296,1766261909285,-10000.01,0.00012808,2]
[399302297,1766261909426,-10000.01,0.00012808,2]
[399302298,1766261926904,150.0,8.713e-05,2]
[399302299,1766261927311,298.39,8.925e-05,2]
[399302300,1766261927709,447.59,9.138e-05,2]
[399302301,1766261927774,-1110.12825949,0.00012671,2]
[399302302,1766261927803,-278.16104281,0.00012799,2]
[399302303,1766261927832,-461.82338863,0.00012799,2]
[399302304,1766261927893,-6299.78461814,0.00012808,2]
[399302305,1766261927918,-10000.01,0.00012808,2]
[399302306,1766261928016,-10000.01,0.00012808,2]
[399302307,1766261928402,596.78,9.35e-05,2]
[399302308,1766261928442,-10000.01,0.00012808,2]
[399302309,1766261928455,-10000.01,0.00012808,2]
[399302310,1766261928486,-10000.01,0.00012808,2]
[399302311,1766261928638,-10000.01,0.00012808,2]
[399302312,1766261928810,-10000.01,0.00012808,2]
[399302313,1766261928970,745.98,9.563e-05,2]
[399302314,1766261928999,-10000.01,0.00012808,2]
[399302315,1766261929386,895.17,9.775e-05,2]
[399302316,1766261929401,-10000.01,0.00012808,2]
[399302317,1766261929793,1044.37,9.988e-05,2]
[399302318,1766261935690,-173.3850549,0.000102,2]
[399302319,1766261936987,-206.84041916,0.000102,2]
[399302320,1766261939265,-402.65934723,0.000102,2]
[399302321,1766261941373,-410.67517871,0.000102,2]
[399302322,1766261941398,-89.32482129,0.00010413,2]
[399302323,1766261944108,-241.95611196,0.00010413,2]
[399302324,1766261947490,-207.04613181,0.00010413,2]
[399302325,1766261949143,-398.00074638,0.00010309,2]
[399302326,1766261952446,-248.57427326,0.00010309,2]
[399302327,1766261954538,-211.33622502,0.00010309,2]
[399302328,1766261957122,-199.58706956,0.00010309,2]
[399302329,1766261959037,-333.71653609,0.00010309,2]
[399302330,1766261963206,-201.02879856,0.00010309,2]
[399302331,1766261964491,-3407.75635113,0.00010309,2]
[399302332,1766261964525,-804.43293494,0.00010413,2]
[399302333,1766261964556,-83.68142786,0.00010625,2]
[399302334,1766261964615,-1408.26857214,0.00010625,2]
[399302335,1766262005292,185.18,0.0001,2]
[399302336,1766262006581,5000.0,0.00032877,120]
[399302337,1766262007653,185.18,0.000102,2]
[399302338,1766262008779,764.76,9.123e-05,2]
[399302339,1766262009193,1529.52,9.346e-05,2]
[399302340,1766262009592,2294.28,9.568e-05,2]
[399302341,1766262010004,3059.04,9.791e-05,2]
[399302342,1766262010032,185.18,0.000104,2]
[399302343,1766262011113,1796.87,0.00010013,2]
[399302344,1766262011139,2026.93,0.00010013,2]
[399302345,1766262011204,4588.56,0.00010236,2]
[399302346,1766262011264,3384.52,0.00010458,2]
[399302347,1766262011287,1968.8,0.00010458,2]
[399302348,1766262011652,6118.08,0.00010681,2]
[399302349,1766262012051,1913.13,0.00010903,2]
[399302350,1766262012076,4969.71,0.00010903,2]
[399302351,1766262012379,185.18,0.000106,2]
[399302352,1766262012481,4845.12,0.00011126,2]
[399302353,1766262024786,-185.18,0.000108,2]
[399302354,1766262024813,-185.18,0.00011,2]
[399302355,1766262024844,-325.81002386,0.00011126,2]
[399302356,1766262027015,-298.32210853,0.00011126,2]
[399302357,1766262029333,-351.67810201,0.00011126,2]
[399302358,1766262033293,-236.17280447,0.00011126,2]
[399302359,1766262035565,-237.80772986,0.00011126,2]
[399302360,1766262039816,-281.41465633,0.00011126,2]
[399302361,1766262043874,-470.04377759,0.00011126,2]
[399302362,1766262045509,-601.23079735,0.00011126,2]
[399302363,1766262057403,-466.34662331,0.00012553,2]
[399302364,1766262057434,-597.0,0.00012553,2]
[399302365,1766262060539,2028.15652354,0.00012553,2]
[399302366,1766262074438,-1751.84081199,0.00012654,2]
[399302367,1766262085537,357.27,8.778e-05,2]
[399302368,1766262085954,714.53,8.993e-05,2]
[399302369,1766262086629,1071.8,9.207e-05,2]
[399302370,1766262086746,1429.07,9.421e-05,2]
[399302371,1766262087147,1786.33,9.635e-05,2]
[399302372,1766262087560,1137.32837602,9.849e-05,2]
[399302373,1766262087583,1006.27162398,9.849e-05,2]
[399302374,1766262088107,2500.86,0.00010063,2]
[399302375,1766262088528,2858.13,0.00010277,2]
[399302376,1766262088944,3215.4,0.00010491,2]
[399302377,1766262089364,419.34837602,0.00010705,2]
[399302378,1766262089388,3153.31162398,0.00010705,2]
[399302379,1766262094501,496.19951713,0.00012581,2]
[399302380,1766262095375,-5000.0,0.0001268,2]
[399302381,1766262097250,0.01,0.00012581,2]
[399302382,1766262097272,893.14913084,0.00012581,2]
[399302383,1766262100136,653.1620185,0.00012545,2]
[399302384,1766262113550,5000.0,0.0001268,2]
[399302385,1766262116381,-1279.70280999,0.00012699,2]
[399302386,1766262125976,-300.0,0.00012698,2]
[399302387,1766262126015,-9400.01,0.00012699,2]
[399302388,1766262126134,-10000.01,0.00012699,2]
[399302389,1766262126308,-10000.01,0.00012699,2]
[399302390,1766262126531,-10000.01,0.00012699,2]
[399302391,1766262126724,-10000.01,0.00012699,2]
[399302392,1766262126930,-10000.01,0.00012699,2]
[399302393,1766262147689,-5000.0,0.00012572,2]
[399302394,1766262151205,0.01,0.00012649,2]
[399302395,1766262162230,223.38,8.702e-05,2]
[399302396,1766262162657,446.76,8.914e-05,2]
[399302397,1766262163063,670.14,9.126e-05,2]
[399302398,1766262163489,893.52,9.339e-05,2]
[399302399,1766262163887,1116.9,9.551e-05,2]
[399302400,1766262164337,1340.28,9.763e-05,2]
[399302401,1766262164782,1563.66,9.975e-05,2]
[399302402,1766262176052,-154.9774803,0.00010187,2]
[399302403,1766262179588,-584.18001452,0.00010187,2]
[399302404,1766262181855,-637.77144976,0.00010187,2]
[399302405,1766262184209,-407.35629912,0.00010187,2]
[399302406,1766262187369,-2.7547563,0.00010187,2]
[399302407,1766262187393,-397.17255977,0.000104,2]
[399302408,1766262189606,-370.73517448,0.000104,2]
[399302409,1766262191203,-185.84952116,0.000104,2]
[399302410,1766262194807,-238.01316205,0.000104,2]
[399302411,1766262198128,-336.37836592,0.000104,2]
[399302412,1766262201184,-482.27121662,0.000104,2]
[399302413,1766262201794,-476.00863089,0.00010612,2]
[399302414,1766262203462,-251.79547661,0.00010612,2]
[399302415,1766262207492,-175.44516123,0.00010612,2]
[399302416,1766262209339,-351.59117295,0.00010612,2]
[399302417,1766262211048,-335.40821522,0.00010612,2]
[399302418,1766262213836,-175.37496474,0.00010612,2]
[399302419,1766262216533,-246.86666038,0.00010612,2]
[399302420,1766262218419,-198.5,0.00010612,2]
[399302421,1766262220540,-22.80971798,0.00010612,2]
[399302422,1766262220561,-156.06426002,0.00011553,2]
[399302423,1766262240017,150.0,8.18e-05,2]
[399302424,1766262240759,150.0,8.38e-05,2]
[399302425,1766262240822,201.04,8.579e-05,2]
[399302426,1766262241219,268.06,8.779e-05,2]
[399302427,1766262241620,335.07,8.978e-05,2]
[399302428,1766262242060,402.09,9.178e-05,2]
[399302429,1766262242441,469.1,9.378e-05,2]
[399302430,1766262242889,536.12,9.577e-05,2]
[399302431,1766262243330,603.13,9.777e-05,2]
[399302432,1766262243756,670.14,9.976e-05,2]
[399302433,1766262315218,150.0,8.163e-05,2]
[399302434,1766262315633,150.0,8.362e-05,2]
[399302435,1766262316013,150.0,8.561e-05,2]
[399302436,1766262316426,150.0,8.76e-05,2]
[399302437,1766262316873,150.0,8.959e-05,2]
[399302438,1766262317266,150.0,9.158e-05,2]
[399302439,1766262317688,150.0,9.357e-05,2]
[399302440,1766262318077,150.76,9.557e-05,2]
[399302441,1766262318476,169.6,9.756e-05,2]
[399302442,1766262344109,5000.0,0.00011553,2]
[399302445,1766262368302,3629.65,0.00011553,2]
[399302446,1766262368326,1370.35,0.00011553,2]
[399302454,1766262394647,-5000.0,0.00012082,2]
[399302455,1766262394884,-1016.04857142,0.00012204,2]
[399302462,1766262415334,5000.0,0.00012342,2]
[399302465,1766262419102,-212.81564444,0.00012466,2]
[399302470,1766262438298,5000.0,0.00012466,2]
[399302472,1766262461060,0.01,0.00012466,2]
[399302473,1766262461084,4999.99,0.00012466,2]
[399302476,1766262479657,-2812.87833436,0.00012466,2]
[399302477,1766262479688,-503.74743982,0.00012499,2]
[399302478,1766262484519,3366.75845164,0.00012499,2]
[399302479,1766262484543,1633.24154836,0.00012499,2]
[399302480,1766262486898,423.72037392,0.00010618,2]
[399302481,1766262499525,-574.05760516,0.00012545,2]
[399302482,1766262507516,5000.0,0.00012545,2]
[399302484,1766262510360,150.0,7.982e-05,2]
[399302486,1766262510754,150.0,8.176e-05,2]
[399302487,1766262511148,150.0,8.371e-05,2]
[399302488,1766262511565,187.92,8.566e-05,2]
[399302489,1766262511981,234.9,8.76e-05,2]
[399302490,1766262512985,281.88,8.955e-05,2]
[399302491,1766262513251,328.87,9.15e-05,2]
[399302492,1766262513663,375.85,9.344e-05,2]
[399302493,1766262514478,422.83,9.539e-05,2]
[399302494,1766262514892,469.81,9.734e-05,2]
[399302495,1766262517871,1099.83478968,0.0001,2]
[399302496,1766262517893,5893.67009233,0.0001,2]
[399302497,1766262521143,-300.0,0.00012579,2]
[399302500,1766262530491,5000.0,0.00012579,2]
[399302501,1766262543152,-300.0,0.0001258,2]
[399302502,1766262543180,-1200.0,0.0001258,2]
[399302503,1766262543223,-154.0,0.0001258,2]
[399302504,1766262554023,5000.0,0.0001258,2]
[399302505,1766262561356,436.10482302,0.00011952,2]
[399302506,1766262563620,784.98868144,0.00011952,2]
[399302507,1766262565970,-842.51022659,0.00012645,2]
[399302508,1766262565999,-300.0,0.00012647,2]
[399302509,1766262566028,-1200.0,0.00012648,2]
[399302510,1766262566056,-500.0,0.00012648,2]
[399302511,1766262566084,-194.71272997,0.00012648,2]
[399302512,1766262566112,-581.05784681,0.00012648,2]
[399302513,1766262566141,-275.12740879,0.00012648,2]
[399302514,1766262576180,-4440.9745887,0.00012649,2]
[399302515,1766262576212,-10000.01,0.00012649,2]
[399302516,1766262577048,5000.0,0.0001258,2]
[399302517,1766262584747,150.0,8.502e-05,2]
[399302518,1766262585176,150.0,8.709e-05,2]
[399302519,1766262585588,150.0,8.917e-05,2]
[399302520,1766262586932,150.0,9.124e-05,2]
[399302521,1766262587003,150.0,9.331e-05,2]
[399302522,1766262587077,150.0,9.539e-05,2]
[399302523,1766262590710,-5000.01,0.00012649,2]
[399302524,1766262590842,-10000.01,0.00012649,2]
[399302525,1766262590941,-10000.01,0.00012649,2]
[399302526,1766262599916,-10000.01,0.00012649,2]
[399302527,1766262600087,-558.9754113,0.00012649,2]
[399302528,1766262600121,-8882.0591774,0.00012699,2]
[399302529,1766262600294,-10000.01,0.00012699,2]
[399302530,1766262600519,-1117.9308226,0.00012699,2]
[399302531,1766262600595,-7764.1483548,0.00012699,2]
[399302532,1766262610582,-5000.0,0.00012572,2]
[399302533,1766262610616,-0.01,0.00012698,2]
[399302534,1766262620118,-1911.38088555,0.0001258,2]
[399302535,1766262620141,-6177.2482289,0.0001258,2]
[399302536,1766262620304,-500.0,0.00012692,2]
[399302537,1766262620339,-500.0,0.00012692,2]
[399302538,1766262620369,-500.0,0.00012692,2]